[Event "Titled Tuesday Blitz March 08 Early 2022"]
[White "Istvanovszki, Martin"]
[Black "Sovetbekova, Nurai"]
[WhiteFideId "726958"]
[BlackFideId "13801910"]
[WhiteElo "2345"]
[BlackElo "1538"]
[Result "1-0"]
[Round "05"]
[TimeControl "180+1"]
[Date "2022.03.09"]
[WhiteClock "0:02:01"]
[BlackClock "0:00:42"]

1. e4 {[%clk 0:02:57]}  c5 {[%clk 0:02:59]} 2. Nc3 {[%clk 0:02:57]}  d6 {[%clk 0:02:59]} 3. f4 {[%clk 0:02:57]}  Nc6 {[%clk 0:02:56]} 4. Nf3 {[%clk 0:02:57]}  g6 {[%clk 0:02:56]} 5. Bc4 {[%clk 0:02:56]}  Bg7 {[%clk 0:02:55]} 6. O-O {[%clk 0:02:56]}  e6 {[%clk 0:02:56]} 7. f5 {[%clk 0:02:51]}  exf5 {[%clk 0:02:47]} 8. d3 {[%clk 0:02:51]}  Nge7 {[%clk 0:02:37]} 9. Qe1 {[%clk 0:02:51]}  O-O {[%clk 0:02:34]} 10. Qh4 {[%clk 0:02:47]}  Ne5 {[%clk 0:02:01]} 11. Bg5 {[%clk 0:02:44]}  Re8 {[%clk 0:01:54]} 12. Nd5 {[%clk 0:02:44]}  N5c6 {[%clk 0:01:12]} 13. Nf6+ {[%clk 0:02:39]}  Bxf6 {[%clk 0:01:06]} 14. Bxf6 {[%clk 0:02:40]}  fxe4 {[%clk 0:00:47]} 15. Bxf7+ {[%clk 0:02:02]}  Kxf7 {[%clk 0:00:42]} 16. Ng5+ {[%clk 0:02:01]} 1-0


[Site "https://www.chess.com"]

[Event "Titled Tuesday Blitz March 08 Early 2022"]
[White "Jakubowska, Anna"]
[Black "Perez Gormaz, Matias"]
[WhiteFideId "1121952"]
[BlackFideId "3406342"]
[WhiteElo "1924"]
[BlackElo "2327"]
[Result "0-1"]
[Round "05"]
[TimeControl "180+1"]
[Date "2022.03.09"]
[WhiteClock "0:02:01"]
[BlackClock "0:01:47"]

1. e4 {[%clk 0:02:53]}  c5 {[%clk 0:03:00]} 2. Nc3 {[%clk 0:02:51]}  Nc6 {[%clk 0:02:59]} 3. g3 {[%clk 0:02:51]}  g6 {[%clk 0:03:00]} 4. Bg2 {[%clk 0:02:51]}  Bg7 {[%clk 0:03:00]} 5. d3 {[%clk 0:02:50]}  Rb8 {[%clk 0:03:01]} 6. Nh3 {[%clk 0:02:50]}  b5 {[%clk 0:03:01]} 7. Be3 {[%clk 0:02:48]}  b4 {[%clk 0:03:01]} 8. Na4 {[%clk 0:02:46]}  Qa5 {[%clk 0:02:41]} 9. O-O {[%clk 0:02:41]}  Qxa4 {[%clk 0:02:41]} 10. f4 {[%clk 0:02:34]}  Bxb2 {[%clk 0:02:23]} 11. Rb1 {[%clk 0:02:32]}  Bd4 {[%clk 0:02:22]} 12. Qe2 {[%clk 0:02:24]}  b3 {[%clk 0:01:54]} 13. axb3 {[%clk 0:02:13]}  Bxe3+ {[%clk 0:01:54]} 14. Qxe3 {[%clk 0:02:14]}  Qd4 {[%clk 0:01:54]} 15. Qxd4 {[%clk 0:02:14]}  Nxd4 {[%clk 0:01:54]} 16. f5 {[%clk 0:02:13]}  Nf6 {[%clk 0:01:51]} 17. e5 {[%clk 0:02:06]}  Ng4 {[%clk 0:01:49]} 18. fxg6 {[%clk 0:02:03]}  hxg6 {[%clk 0:01:47]} 19. Ng5 {[%clk 0:02:01]}  Ne2+ {[%clk 0:01:47]} 0-1


[Site "https://www.chess.com"]

[Event "Titled Tuesday Blitz March 08 Early 2022"]
[White "Jary, Sergey"]
[Black "Leve, Nitai"]
[WhiteFideId "14110350"]
[BlackFideId "2006898"]
[WhiteElo "2260"]
[BlackElo "2144"]
[Result "1-0"]
[Round "05"]
[TimeControl "180+1"]
[Date "2022.03.09"]
[WhiteClock "0:01:19"]
[BlackClock "0:00:05"]

1. e4 {[%clk 0:03:00]}  c6 {[%clk 0:02:59]} 2. d4 {[%clk 0:03:00]}  d5 {[%clk 0:03:00]} 3. Nd2 {[%clk 0:03:00]}  dxe4 {[%clk 0:03:00]} 4. Nxe4 {[%clk 0:03:01]}  Nf6 {[%clk 0:03:01]} 5. Nxf6+ {[%clk 0:03:00]}  gxf6 {[%clk 0:03:02]} 6. Bc4 {[%clk 0:03:01]}  Rg8 {[%clk 0:03:02]} 7. g3 {[%clk 0:03:00]}  Bg4 {[%clk 0:03:01]} 8. f3 {[%clk 0:02:59]}  Bh5 {[%clk 0:02:58]} 9. Kf2 {[%clk 0:02:37]}  Nd7 {[%clk 0:02:51]} 10. c3 {[%clk 0:02:34]}  e5 {[%clk 0:02:45]} 11. h4 {[%clk 0:02:31]}  Qc7 {[%clk 0:02:41]} 12. g4 {[%clk 0:02:27]}  O-O-O {[%clk 0:02:38]} 13. gxh5 {[%clk 0:02:21]}  exd4 {[%clk 0:02:38]} 14. Ke2 {[%clk 0:02:15]}  Ne5 {[%clk 0:01:49]} 15. Bf4 {[%clk 0:02:04]}  dxc3 {[%clk 0:01:46]} 16. Qb3 {[%clk 0:02:01]}  cxb2 {[%clk 0:01:32]} 17. Rb1 {[%clk 0:02:01]}  Bc5 {[%clk 0:01:11]} 18. Kf1 {[%clk 0:01:58]}  Bxg1 {[%clk 0:00:22]} 19. Rxg1 {[%clk 0:01:54]}  Rxg1+ {[%clk 0:00:23]} 20. Kxg1 {[%clk 0:01:54]}  Rg8+ {[%clk 0:00:22]} 21. Kh1 {[%clk 0:01:47]}  Qd7 {[%clk 0:00:22]} 22. Bf1 {[%clk 0:01:42]}  Qf5 {[%clk 0:00:14]} 23. Qxb2 {[%clk 0:01:33]}  b6 {[%clk 0:00:08]} 24. Qc1 {[%clk 0:01:30]}  Nxf3 {[%clk 0:00:06]} 25. Qxc6+ {[%clk 0:01:18]}  Kd8 {[%clk 0:00:05]} 26. Bc7+ {[%clk 0:01:18]}  Ke7 {[%clk 0:00:05]} 27. Qd6+ {[%clk 0:01:18]}  Ke8 {[%clk 0:00:05]} 28. Qd8# {[%clk 0:01:19]} 1-0


[Site "https://www.chess.com"]

[Event "Titled Tuesday Blitz March 08 Early 2022"]
[White "Johnson, Ben"]
[Black "Khabinets, Ivan"]
[WhiteFideId "2010917"]
[BlackFideId "14115980"]
[WhiteElo "2192"]
[BlackElo "2114"]
[Result "0-1"]
[Round "05"]
[TimeControl "180+1"]
[Date "2022.03.09"]
[WhiteClock "0:00:01"]
[BlackClock "0:00:52"]

1. Nf3 {[%clk 0:03:00]}  Nf6 {[%clk 0:02:59]} 2. c4 {[%clk 0:03:00]}  e6 {[%clk 0:03:00]} 3. b3 {[%clk 0:02:59]}  c5 {[%clk 0:02:59]} 4. Bb2 {[%clk 0:02:58]}  d5 {[%clk 0:03:00]} 5. cxd5 {[%clk 0:02:54]}  exd5 {[%clk 0:03:01]} 6. e3 {[%clk 0:02:54]}  Nc6 {[%clk 0:03:01]} 7. Bb5 {[%clk 0:02:51]}  Bd7 {[%clk 0:02:49]} 8. O-O {[%clk 0:02:45]}  Be7 {[%clk 0:02:46]} 9. d4 {[%clk 0:02:35]}  O-O {[%clk 0:02:38]} 10. Bxc6 {[%clk 0:02:13]}  bxc6 {[%clk 0:02:33]} 11. Ne5 {[%clk 0:02:11]}  cxd4 {[%clk 0:02:30]} 12. Bxd4 {[%clk 0:02:08]}  Bd6 {[%clk 0:02:27]} 13. Nd2 {[%clk 0:01:51]}  Qc7 {[%clk 0:02:25]} 14. Ndf3 {[%clk 0:01:48]}  Rfe8 {[%clk 0:02:19]} 15. Nxd7 {[%clk 0:01:35]}  Nxd7 {[%clk 0:02:19]} 16. h3 {[%clk 0:01:29]}  a5 {[%clk 0:02:17]} 17. Rc1 {[%clk 0:01:28]}  a4 {[%clk 0:02:16]} 18. Bb2 {[%clk 0:01:18]}  axb3 {[%clk 0:02:16]} 19. axb3 {[%clk 0:01:19]}  Rab8 {[%clk 0:02:14]} 20. Qc2 {[%clk 0:01:10]}  Rb6 {[%clk 0:02:06]} 21. Rfd1 {[%clk 0:01:04]}  Nc5 {[%clk 0:01:59]} 22. Nd4 {[%clk 0:00:57]}  Reb8 {[%clk 0:01:56]} 23. Nf5 {[%clk 0:00:45]}  Ne6 {[%clk 0:01:55]} 24. Nxd6 {[%clk 0:00:40]}  Qxd6 {[%clk 0:01:55]} 25. Bd4 {[%clk 0:00:28]}  Ra6 {[%clk 0:01:45]} 26. Qf5 {[%clk 0:00:21]}  Rxb3 {[%clk 0:01:35]} 27. Be5 {[%clk 0:00:14]}  Qd7 {[%clk 0:01:33]} 28. h4 {[%clk 0:00:13]}  f6 {[%clk 0:01:24]} 29. Bc3 {[%clk 0:00:10]}  Nc5 {[%clk 0:01:18]} 30. Qf4 {[%clk 0:00:08]}  Ne4 {[%clk 0:01:10]} 31. Bd4 {[%clk 0:00:06]}  Ra2 {[%clk 0:01:01]} 32. Rf1 {[%clk 0:00:03]}  Rd3 {[%clk 0:00:53]} 33. h5 {[%clk 0:00:02]}  Rdd2 {[%clk 0:00:52]} 34. h6 {[%clk 0:00:01]}  Rxf2 {[%clk 0:00:51]} 35. Rxf2 {[%clk 0:00:01]}  Rxf2 {[%clk 0:00:52]} 0-1


[Site "https://www.chess.com"]

[Event "Titled Tuesday Blitz March 08 Early 2022"]
[White "Kadam, Om Manish"]
[Black "Pein, Jonathan"]
[WhiteFideId "45076294"]
[BlackFideId "417092"]
[WhiteElo "1729"]
[BlackElo "2140"]
[Result "1-0"]
[Round "05"]
[TimeControl "180+1"]
[Date "2022.03.09"]
[WhiteClock "0:00:39"]
[BlackClock "0:00:03"]

1. e4 {[%clk 0:03:00]}  e5 {[%clk 0:02:57]} 2. Nf3 {[%clk 0:03:00]}  d6 {[%clk 0:02:57]} 3. d4 {[%clk 0:02:59]}  exd4 {[%clk 0:02:58]} 4. Nxd4 {[%clk 0:03:00]}  Nf6 {[%clk 0:02:57]} 5. Nc3 {[%clk 0:03:00]}  g6 {[%clk 0:02:56]} 6. Bc4 {[%clk 0:02:59]}  Bg7 {[%clk 0:02:57]} 7. O-O {[%clk 0:02:56]}  O-O {[%clk 0:02:57]} 8. f3 {[%clk 0:02:56]}  a6 {[%clk 0:02:55]} 9. a4 {[%clk 0:02:56]}  Re8 {[%clk 0:02:52]} 10. Kh1 {[%clk 0:02:54]}  Nc6 {[%clk 0:02:51]} 11. Nxc6 {[%clk 0:02:48]}  bxc6 {[%clk 0:02:52]} 12. Bg5 {[%clk 0:02:41]}  h6 {[%clk 0:02:52]} 13. Bh4 {[%clk 0:02:38]}  g5 {[%clk 0:02:52]} 14. Bg3 {[%clk 0:02:36]}  Rb8 {[%clk 0:02:53]} 15. Rb1 {[%clk 0:02:35]}  Nh5 {[%clk 0:02:53]} 16. Bf2 {[%clk 0:02:34]}  Qf6 {[%clk 0:02:52]} 17. Bb3 {[%clk 0:02:27]}  Be6 {[%clk 0:02:52]} 18. Bxe6 {[%clk 0:02:25]}  Rxe6 {[%clk 0:02:53]} 19. Qd3 {[%clk 0:02:12]}  Nf4 {[%clk 0:02:51]} 20. Qxa6 {[%clk 0:02:11]}  c5 {[%clk 0:02:44]} 21. Be3 {[%clk 0:01:59]}  Ree8 {[%clk 0:02:02]} 22. Bxf4 {[%clk 0:01:57]}  gxf4 {[%clk 0:01:51]} 23. Nd5 {[%clk 0:01:57]}  Qd8 {[%clk 0:01:52]} 24. c3 {[%clk 0:01:55]}  Qd7 {[%clk 0:01:50]} 25. Nxf4 {[%clk 0:01:45]}  Ra8 {[%clk 0:01:43]} 26. Qd3 {[%clk 0:01:38]}  Rxa4 {[%clk 0:01:40]} 27. Nh5 {[%clk 0:01:36]}  Rb8 {[%clk 0:01:29]} 28. f4 {[%clk 0:01:34]}  Qg4 {[%clk 0:01:28]} 29. Nxg7 {[%clk 0:01:33]}  Qxg7 {[%clk 0:01:25]} 30. Rf3 {[%clk 0:01:32]}  Kh8 {[%clk 0:01:20]} 31. e5 {[%clk 0:01:29]}  dxe5 {[%clk 0:00:51]} 32. fxe5 {[%clk 0:01:30]}  Rg4 {[%clk 0:00:50]} 33. Qf1 {[%clk 0:01:23]}  Qxe5 {[%clk 0:00:44]} 34. Rxf7 {[%clk 0:01:19]}  Rbg8 {[%clk 0:00:40]} 35. Rf2 {[%clk 0:01:18]}  Qe4 {[%clk 0:00:31]} 36. Re1 {[%clk 0:01:17]}  Qc6 {[%clk 0:00:23]} 37. Ree2 {[%clk 0:01:01]}  R4g6 {[%clk 0:00:22]} 38. Rf5 {[%clk 0:00:58]}  c4 {[%clk 0:00:20]} 39. Rf8 {[%clk 0:00:58]}  Qd6 {[%clk 0:00:16]} 40. Rxg8+ {[%clk 0:00:57]}  Rxg8 {[%clk 0:00:17]} 41. h3 {[%clk 0:00:56]}  Qd3 {[%clk 0:00:16]} 42. Qf4 {[%clk 0:00:48]}  Qg6 {[%clk 0:00:12]} 43. Qxc4 {[%clk 0:00:43]}  Rd8 {[%clk 0:00:07]} 44. Qxc7 {[%clk 0:00:41]}  Rf8 {[%clk 0:00:03]} 45. Kh2 {[%clk 0:00:39]} 1-0


[Site "https://www.chess.com"]

[Event "Titled Tuesday Blitz March 08 Early 2022"]
[White "Karolczuk, Iwo"]
[Black "Bethke, Richard"]
[WhiteFideId "21816972"]
[BlackFideId "12959243"]
[WhiteElo "2243"]
[BlackElo "2522"]
[Result "0-1"]
[Round "05"]
[TimeControl "180+1"]
[Date "2022.03.09"]
[WhiteClock "0:00:02"]
[BlackClock "0:00:23"]

1. e4 {[%clk 0:02:58]}  c5 {[%clk 0:03:00]} 2. Nf3 {[%clk 0:02:53]}  d6 {[%clk 0:03:00]} 3. d4 {[%clk 0:02:53]}  cxd4 {[%clk 0:03:01]} 4. Nxd4 {[%clk 0:02:54]}  Nf6 {[%clk 0:03:01]} 5. Nc3 {[%clk 0:02:54]}  a6 {[%clk 0:03:00]} 6. Be3 {[%clk 0:02:53]}  e5 {[%clk 0:03:01]} 7. Nb3 {[%clk 0:02:53]}  Be6 {[%clk 0:02:59]} 8. Be2 {[%clk 0:02:49]}  h5 {[%clk 0:02:51]} 9. Qd3 {[%clk 0:02:41]}  Nc6 {[%clk 0:02:42]} 10. a3 {[%clk 0:02:16]}  d5 {[%clk 0:02:33]} 11. exd5 {[%clk 0:02:14]}  Nxd5 {[%clk 0:02:34]} 12. O-O-O {[%clk 0:02:06]}  Nxe3 {[%clk 0:02:29]} 13. Qxe3 {[%clk 0:02:07]}  Qc7 {[%clk 0:02:27]} 14. Nd5 {[%clk 0:01:56]}  Bxd5 {[%clk 0:02:26]} 15. Rxd5 {[%clk 0:01:57]}  g6 {[%clk 0:02:25]} 16. Kb1 {[%clk 0:01:49]}  Bg7 {[%clk 0:02:24]} 17. Rhd1 {[%clk 0:01:47]}  O-O {[%clk 0:02:15]} 18. Rd7 {[%clk 0:01:45]}  Qc8 {[%clk 0:02:15]} 19. g4 {[%clk 0:01:21]}  Nd4 {[%clk 0:02:05]} 20. Nxd4 {[%clk 0:01:05]}  exd4 {[%clk 0:01:47]} 21. Qe7 {[%clk 0:01:04]}  Qc6 {[%clk 0:01:47]} 22. Rc7 {[%clk 0:00:51]}  Rae8 {[%clk 0:01:39]} 23. Qxf8+ {[%clk 0:00:43]}  Kxf8 {[%clk 0:01:38]} 24. Rxc6 {[%clk 0:00:44]}  bxc6 {[%clk 0:01:38]} 25. Bxa6 {[%clk 0:00:43]}  hxg4 {[%clk 0:01:38]} 26. Bd3 {[%clk 0:00:40]}  f5 {[%clk 0:01:36]} 27. a4 {[%clk 0:00:38]}  Ra8 {[%clk 0:01:29]} 28. b3 {[%clk 0:00:36]}  Kf7 {[%clk 0:01:28]} 29. Rh1 {[%clk 0:00:36]}  Bf8 {[%clk 0:01:26]} 30. h3 {[%clk 0:00:35]}  gxh3 {[%clk 0:01:26]} 31. Rxh3 {[%clk 0:00:36]}  Bb4 {[%clk 0:01:26]} 32. Rh7+ {[%clk 0:00:35]}  Kf6 {[%clk 0:01:16]} 33. Rh1 {[%clk 0:00:33]}  Bc3 {[%clk 0:01:15]} 34. Ka2 {[%clk 0:00:32]}  c5 {[%clk 0:01:15]} 35. Kb1 {[%clk 0:00:31]}  Re8 {[%clk 0:01:12]} 36. Kc1 {[%clk 0:00:31]}  g5 {[%clk 0:01:10]} 37. Bb5 {[%clk 0:00:30]}  Re7 {[%clk 0:01:06]} 38. Bd3 {[%clk 0:00:29]}  g4 {[%clk 0:01:06]} 39. Kd1 {[%clk 0:00:28]}  Kg5 {[%clk 0:01:05]} 40. Be2 {[%clk 0:00:26]}  Kf4 {[%clk 0:00:48]} 41. Rh5 {[%clk 0:00:24]}  Rg7 {[%clk 0:00:42]} 42. Rh1 {[%clk 0:00:23]}  g3 {[%clk 0:00:41]} 43. fxg3+ {[%clk 0:00:24]}  Rxg3 {[%clk 0:00:41]} 44. Rf1+ {[%clk 0:00:24]}  Ke5 {[%clk 0:00:39]} 45. Rf3 {[%clk 0:00:22]}  Rg1+ {[%clk 0:00:36]} 46. Rf1 {[%clk 0:00:22]}  Rg2 {[%clk 0:00:35]} 47. Bf3 {[%clk 0:00:18]}  Rd2+ {[%clk 0:00:35]} 48. Kc1 {[%clk 0:00:18]}  f4 {[%clk 0:00:36]} 49. Re1+ {[%clk 0:00:18]}  Kf6 {[%clk 0:00:35]} 50. Rf1 {[%clk 0:00:15]}  Kf5 {[%clk 0:00:34]} 51. Bc6 {[%clk 0:00:11]}  Rh2 {[%clk 0:00:31]} 52. Bb7 {[%clk 0:00:11]}  Kg4 {[%clk 0:00:30]} 53. Rg1+ {[%clk 0:00:10]}  Kh3 {[%clk 0:00:29]} 54. Bc8+ {[%clk 0:00:08]}  Kh4 {[%clk 0:00:28]} 55. Kd1 {[%clk 0:00:07]}  Rd2+ {[%clk 0:00:27]} 56. Kc1 {[%clk 0:00:08]}  Re2 {[%clk 0:00:27]} 57. Kd1 {[%clk 0:00:07]}  f3 {[%clk 0:00:27]} 58. Rf1 {[%clk 0:00:07]}  Kg3 {[%clk 0:00:25]} 59. Bb7 {[%clk 0:00:04]}  Re3 {[%clk 0:00:24]} 60. Kc1 {[%clk 0:00:02]}  f2 {[%clk 0:00:23]} 0-1


[Site "https://www.chess.com"]

[Event "Titled Tuesday Blitz March 08 Early 2022"]
[White "Kobalia, Mikhail"]
[Black "Avila Pavas, Santiago"]
[WhiteFideId "4119150"]
[BlackFideId "4437128"]
[WhiteElo "2667"]
[BlackElo "2242"]
[Result "1-0"]
[Round "05"]
[TimeControl "180+1"]
[Date "2022.03.08"]
[WhiteClock "0:00:05"]
[BlackClock "0:00:08"]

1. e4 {[%clk 0:02:56]}  Nf6 {[%clk 0:02:59]} 2. e5 {[%clk 0:02:54]}  Nd5 {[%clk 0:02:59]} 3. d4 {[%clk 0:02:54]}  d6 {[%clk 0:03:00]} 4. Nf3 {[%clk 0:02:55]}  g6 {[%clk 0:03:00]} 5. Bc4 {[%clk 0:02:54]}  Nb6 {[%clk 0:03:00]} 6. Bb3 {[%clk 0:02:55]}  Bg7 {[%clk 0:03:01]} 7. O-O {[%clk 0:02:53]}  O-O {[%clk 0:03:01]} 8. Re1 {[%clk 0:02:51]}  Bg4 {[%clk 0:02:58]} 9. exd6 {[%clk 0:02:47]}  cxd6 {[%clk 0:02:52]} 10. h3 {[%clk 0:02:46]}  Bf5 {[%clk 0:02:51]} 11. Nbd2 {[%clk 0:02:43]}  Nc6 {[%clk 0:02:50]} 12. c3 {[%clk 0:02:43]}  e5 {[%clk 0:02:45]} 13. dxe5 {[%clk 0:02:40]}  dxe5 {[%clk 0:02:44]} 14. Nf1 {[%clk 0:02:40]}  Qxd1 {[%clk 0:02:04]} 15. Rxd1 {[%clk 0:02:38]}  Na5 {[%clk 0:02:04]} 16. Ne3 {[%clk 0:02:34]}  Nxb3 {[%clk 0:02:04]} 17. axb3 {[%clk 0:02:33]}  Be6 {[%clk 0:02:04]} 18. c4 {[%clk 0:02:19]}  h6 {[%clk 0:01:09]} 19. Ng4 {[%clk 0:02:14]}  e4 {[%clk 0:01:09]} 20. Nd4 {[%clk 0:02:11]}  Rad8 {[%clk 0:00:47]} 21. Be3 {[%clk 0:02:10]}  Bc8 {[%clk 0:00:47]} 22. Nb5 {[%clk 0:01:40]}  f5 {[%clk 0:00:33]} 23. Nxh6+ {[%clk 0:01:36]}  Kh7 {[%clk 0:00:32]} 24. Rxd8 {[%clk 0:01:36]}  Rxd8 {[%clk 0:00:32]} 25. Nf7 {[%clk 0:01:36]}  Rd3 {[%clk 0:00:31]} 26. Ng5+ {[%clk 0:01:31]}  Kg8 {[%clk 0:00:30]} 27. Bxb6 {[%clk 0:01:29]}  axb6 {[%clk 0:00:30]} 28. Ra8 {[%clk 0:01:28]}  Rd8 {[%clk 0:00:31]} 29. Ne6 {[%clk 0:01:23]}  Rd1+ {[%clk 0:00:12]} 30. Kh2 {[%clk 0:01:22]}  Be5+ {[%clk 0:00:13]} 31. g3 {[%clk 0:01:22]}  Rd2 {[%clk 0:00:12]} 32. Kg1 {[%clk 0:01:18]}  e3 {[%clk 0:00:10]} 33. fxe3 {[%clk 0:01:15]}  Bxg3 {[%clk 0:00:09]} 34. Rxc8+ {[%clk 0:01:13]}  Kf7 {[%clk 0:00:09]} 35. Nbc7 {[%clk 0:00:22]}  Bf2+ {[%clk 0:00:08]} 36. Kf1 {[%clk 0:00:20]}  Bxe3 {[%clk 0:00:09]} 37. Nd5 {[%clk 0:00:19]}  Bh6 {[%clk 0:00:04]} 38. Rh8 {[%clk 0:00:14]}  Kxe6 {[%clk 0:00:02]} 39. Rxh6 {[%clk 0:00:15]}  Kf7 {[%clk 0:00:03]} 40. Rh7+ {[%clk 0:00:15]}  Ke6 {[%clk 0:00:03]} 41. Rxb7 {[%clk 0:00:15]}  Rxb2 {[%clk 0:00:04]} 42. Rxb6+ {[%clk 0:00:15]}  Ke5 {[%clk 0:00:04]} 43. Rxg6 {[%clk 0:00:10]}  Rxb3 {[%clk 0:00:04]} 44. h4 {[%clk 0:00:10]}  Ke4 {[%clk 0:00:04]} 45. h5 {[%clk 0:00:06]}  Kf3 {[%clk 0:00:04]} 46. Ke1 {[%clk 0:00:06]}  Rb2 {[%clk 0:00:03]} 47. h6 {[%clk 0:00:06]}  Rh2 {[%clk 0:00:03]} 48. c5 {[%clk 0:00:06]}  Ke4 {[%clk 0:00:04]} 49. Nf6+ {[%clk 0:00:06]}  Ke5 {[%clk 0:00:04]} 50. h7 {[%clk 0:00:06]}  f4 {[%clk 0:00:03]} 51. Rg8 {[%clk 0:00:06]}  f3 {[%clk 0:00:02]} 52. h8=Q {[%clk 0:00:06]}  f2+ {[%clk 0:00:03]} 53. Kf1 {[%clk 0:00:06]}  Rh1+ {[%clk 0:00:03]} 54. Qxh1 {[%clk 0:00:05]}  Ke6 {[%clk 0:00:04]} 55. Qe4+ {[%clk 0:00:05]}  Kf7 {[%clk 0:00:05]} 56. Qg6+ {[%clk 0:00:05]}  Ke6 {[%clk 0:00:05]} 57. Ng4+ {[%clk 0:00:05]}  Kd5 {[%clk 0:00:05]} 58. Qd3+ {[%clk 0:00:05]}  Kc6 {[%clk 0:00:06]} 59. Rg6+ {[%clk 0:00:05]}  Kb7 {[%clk 0:00:06]} 60. Qb5+ {[%clk 0:00:05]}  Kc7 {[%clk 0:00:07]} 61. Qc6+ {[%clk 0:00:05]}  Kb8 {[%clk 0:00:07]} 62. Rg8+ {[%clk 0:00:05]}  Ka7 {[%clk 0:00:08]} 63. Ra8# {[%clk 0:00:05]} 1-0


[Site "https://www.chess.com"]

[Event "Titled Tuesday Blitz March 08 Early 2022"]
[White "Kohler, Aran"]
[Black "Shuvalov, Evgenij"]
[WhiteFideId "1002856"]
[BlackFideId "4187237"]
[WhiteElo "2275"]
[BlackElo "2151"]
[Result "0-1"]
[Round "05"]
[TimeControl "180+1"]
[Date "2022.03.09"]
[WhiteClock "0:00:15"]
[BlackClock "0:00:16"]

1. d4 {[%clk 0:02:59]}  Nf6 {[%clk 0:02:59]} 2. c3 {[%clk 0:02:59]}  d5 {[%clk 0:02:58]} 3. Bg5 {[%clk 0:02:59]}  e6 {[%clk 0:02:56]} 4. Nd2 {[%clk 0:02:59]}  Be7 {[%clk 0:02:56]} 5. e3 {[%clk 0:02:59]}  O-O {[%clk 0:02:55]} 6. Bd3 {[%clk 0:02:59]}  c5 {[%clk 0:02:54]} 7. Ngf3 {[%clk 0:02:52]}  Nc6 {[%clk 0:02:51]} 8. h4 {[%clk 0:02:49]}  b6 {[%clk 0:02:48]} 9. Bxf6 {[%clk 0:02:42]}  Bxf6 {[%clk 0:02:46]} 10. Bxh7+ {[%clk 0:02:35]}  Kxh7 {[%clk 0:02:39]} 11. Ng5+ {[%clk 0:02:35]}  Kh6 {[%clk 0:02:25]} 12. f4 {[%clk 0:02:28]}  Ba6 {[%clk 0:01:51]} 13. Qc2 {[%clk 0:02:27]}  g6 {[%clk 0:01:39]} 14. h5 {[%clk 0:02:24]}  Bxg5 {[%clk 0:01:31]} 15. hxg6+ {[%clk 0:02:24]}  Kg7 {[%clk 0:01:29]} 16. Rh7+ {[%clk 0:02:10]}  Kf6 {[%clk 0:01:16]} 17. fxg5+ {[%clk 0:02:06]}  Ke7 {[%clk 0:01:16]} 18. O-O-O {[%clk 0:01:57]}  cxd4 {[%clk 0:01:09]} 19. gxf7 {[%clk 0:01:41]}  Nb4 {[%clk 0:00:44]} 20. Qa4 {[%clk 0:01:26]}  Nd3+ {[%clk 0:00:30]} 21. Kb1 {[%clk 0:01:23]}  Nc5 {[%clk 0:00:30]} 22. Qa3 {[%clk 0:01:05]}  Bd3+ {[%clk 0:00:29]} 23. Ka1 {[%clk 0:01:04]}  Bxh7 {[%clk 0:00:19]} 24. exd4 {[%clk 0:01:00]}  Qc7 {[%clk 0:00:18]} 25. Nf3 {[%clk 0:00:54]}  Rxf7 {[%clk 0:00:17]} 26. Ne5 {[%clk 0:00:53]}  Rf2 {[%clk 0:00:15]} 27. g6 {[%clk 0:00:51]}  Bg8 {[%clk 0:00:14]} 28. dxc5 {[%clk 0:00:38]}  Qxe5 {[%clk 0:00:13]} 29. cxb6+ {[%clk 0:00:39]}  Qd6 {[%clk 0:00:14]} 30. Qa6 {[%clk 0:00:28]}  Qxb6 {[%clk 0:00:12]} 31. Qa3+ {[%clk 0:00:26]}  Qd6 {[%clk 0:00:12]} 32. Qa4 {[%clk 0:00:18]}  Rb8 {[%clk 0:00:11]} 33. Qh4+ {[%clk 0:00:17]}  Kd7 {[%clk 0:00:11]} 34. Qxf2 {[%clk 0:00:16]}  Qb6 {[%clk 0:00:10]} 35. Rb1 {[%clk 0:00:14]}  Qxf2 {[%clk 0:00:10]} 36. g7 {[%clk 0:00:15]}  Qxg2 {[%clk 0:00:10]} 37. a3 {[%clk 0:00:15]}  Qxg7 {[%clk 0:00:11]} 38. Rc1 {[%clk 0:00:15]}  Qe7 {[%clk 0:00:11]} 39. Rb1 {[%clk 0:00:16]}  Qd6 {[%clk 0:00:12]} 40. Ka2 {[%clk 0:00:16]}  Qb6 {[%clk 0:00:13]} 41. c4 {[%clk 0:00:15]}  Qb3+ {[%clk 0:00:14]} 42. Ka1 {[%clk 0:00:15]}  d4 {[%clk 0:00:14]} 43. c5 {[%clk 0:00:14]}  e5 {[%clk 0:00:15]} 44. c6+ {[%clk 0:00:15]}  Kc7 {[%clk 0:00:15]} 45. Rc1 {[%clk 0:00:15]}  Qa2# {[%clk 0:00:16]} 0-1


[Site "https://www.chess.com"]